bitfinex/quotes_BTCUSD_20240905
["timestamp","ask_amount","ask_price","bid_price","bid_amount"]
[1725551822592,0.533949,56185.0,56184.0,0.192]
[1725551822847,0.533949,56185.0,56177.0,0.52850515]
[1725551822848,0.890027,56178.0,56177.0,0.1979]
[1725551823067,0.890027,56178.0,56172.0,0.001632]
[1725551823068,0.890105,56173.0,56172.0,0.001632]
[1725551823287,1.51638898,56173.0,56172.0,0.001632]
[1725551824448,1.63938898,56173.0,56172.0,0.001632]
[1725551824674,1.99543098,56173.0,56172.0,0.001632]
[1725551825208,2.92521496,56173.0,56172.0,0.001632]
[1725551825411,3.10991496,56173.0,56172.0,0.001632]
[1725551825869,2.84167298,56173.0,56172.0,0.001632]
[1725551826097,2.84767298,56173.0,56172.0,0.001632]
[1725551826319,2.84467298,56173.0,56172.0,0.001632]
[1725551826560,3.12191496,56173.0,56172.0,0.001632]
[1725551828393,3.14404577,56173.0,56172.0,0.001632]
[1725551829067,2.23426179,56173.0,56172.0,0.001632]
[1725551829295,2.05056179,56173.0,56172.0,0.001632]
[1725551830603,2.03056179,56173.0,56172.0,0.001632]
[1725551831938,2.00756179,56173.0,56172.0,0.001632]
[1725551833288,2.03056179,56173.0,56172.0,0.001632]
[1725551834142,2.67684577,56173.0,56172.0,0.001632]
[1725551834358,2.67684577,56173.0,56167.0,0.00163]
[1725551834359,1.622333,56168.0,56167.0,0.00163]
[1725551834572,2.01557498,56168.0,56167.0,0.00163]
[1725551835266,2.37164898,56168.0,56167.0,0.00163]
[1725551835491,2.72772298,56168.0,56167.0,0.00163]
[1725551835702,2.91112298,56168.0,56167.0,0.00163]
[1725551836382,2.91312298,56168.0,56167.0,0.00163]
[1725551837485,1.99457498,56168.0,56167.0,0.00163]
[1725551839050,2.35064898,56168.0,56167.0,0.00163]
[1725551839263,2.37364898,56168.0,56167.0,0.00163]
[1725551840105,2.54920924,56168.0,56167.0,0.00163]
[1725551840367,2.54920924,56168.0,56161.0,0.00164]
[1725551840368,1.978616,56162.0,56161.0,0.00164]
[1725551840560,1.978616,56162.0,56144.0,0.00164]
[1725551840561,0.54433,56145.0,56144.0,0.00164]
[1725551840826,2.16347396,56145.0,56144.0,0.00164]
[1725551841025,2.16347396,56145.0,56129.0,0.2602]
[1725551841026,0.890787,56130.0,56129.0,0.2602]
[1725551841266,0.35629,56134.0,56129.0,0.2602]
[1725551841267,0.62653198,56134.0,56129.0,0.2602]
[1725551841501,0.62653198,56134.0,56127.0,0.002]
[1725551841502,0.178151,56132.0,56131.0,0.262]
[1725551841765,0.534454,56132.0,56131.0,0.262]
[1725551841965,0.634454,56132.0,56131.0,0.264]
[1725551842411,0.990757,56132.0,56131.0,0.262]
[1725551842621,0.634454,56132.0,56131.0,0.264]
[1725551842826,0.990757,56132.0,56131.0,0.264]
[1725551843041,0.634454,56132.0,56131.0,0.264]
[1725551843253,0.890757,56132.0,56131.0,0.264]
[1725551843458,0.181151,56132.0,56131.0,0.264]
[1725551843670,0.181151,56132.0,56131.0,0.4717]
[1725551843671,0.003,56132.0,56131.0,0.4717]
[1725551843935,0.1,56139.0,56131.0,0.4717]
[1725551843936,0.534415,56136.0,56135.0,0.4706]
[1725551844370,0.89042469,56136.0,56135.0,0.4686]
[1725551845036,0.89042469,56136.0,56135.0,0.4666]
[1725551847295,1.24670169,56136.0,56135.0,0.4666]
[1725551848220,1.60297869,56136.0,56135.0,0.2689]
[1725551848426,1.60297869,56136.0,56129.0,0.00024021]
[1725551848427,1.247102,56130.0,56129.0,0.00024021]
[1725551848638,1.87365898,56130.0,56129.0,0.00024021]
[1725551848865,1.87365898,56130.0,56129.0,0.28204021]
[1725551849107,1.89665898,56130.0,56129.0,0.28204021]
[1725551850598,1.89665898,56130.0,56129.0,0.00024021]
[1725551850834,1.99865898,56130.0,56129.0,0.00024021]
[1725551851070,1.99865898,56130.0,56129.0,0.46644021]
[1725551851531,1.99865898,56130.0,56129.0,0.27144021]
[1725551852413,2.00165898,56130.0,56129.0,0.27144021]
[1725551852626,1.99965898,56130.0,56129.0,0.27144021]
[1725551852834,1.98065898,56130.0,56129.0,0.27144021]
[1725551854687,2.00333848,56130.0,56129.0,0.27307421]
[1725551855415,1.52402348,56130.0,56129.0,0.27307421]
[1725551856101,1.88033848,56130.0,56129.0,0.27307421]
[1725551856770,1.98033848,56130.0,56129.0,0.27307431]
[1725551856991,1.62402348,56130.0,56129.0,0.27307431]
[1725551858075,1.570711,56130.0,56129.0,0.27307431]
[1725551859964,1.57044706,56130.0,56129.0,0.27307431]
[1725551861449,1.57044706,56130.0,56129.0,0.27307432]
[1725551863214,0.185157,56130.0,56129.0,0.45627432]
[1725551863440,0.541472,56130.0,56129.0,0.45627432]
[1725551863665,0.897787,56130.0,56129.0,0.45627433]
[1725551863871,0.897787,56130.0,56129.0,0.45827433]
[1725551864340,0.537472,56130.0,56129.0,0.45827433]
[1725551864559,0.890787,56130.0,56129.0,0.45627433]
[1725551865011,0.891787,56130.0,56129.0,0.45627434]
[1725551865860,0.890787,56130.0,56129.0,0.45627434]
[1725551866073,0.535472,56130.0,56129.0,0.45627434]
[1725551866283,1.0919165,56130.0,56129.0,0.45627434]
[1725551866501,1.4482315,56130.0,56129.0,0.45627434]
[1725551866742,1.8045465,56130.0,56129.0,0.00187435]
[1725551866944,1.9045465,56130.0,56129.0,0.00187435]
[1725551867582,1.5482315,56130.0,56129.0,0.00187435]
[1725551868020,1.5472315,56130.0,56129.0,0.00187435]
[1725551868236,1.5502315,56130.0,56129.0,0.00187435]
[1725551868453,1.5472315,56130.0,56129.0,0.00187435]
[1725551868923,1.5502315,56130.0,56129.0,0.00187435]
[1725551869778,1.5502315,56130.0,56129.0,0.27907435]
[1725551870590,1.5542315,56130.0,56129.0,0.27907435]
[1725551871334,1.5502315,56130.0,56129.0,0.27907435]
[1725551871701,1.5502315,56130.0,56129.0,0.27897435]
[1725551872133,1.5542315,56130.0,56129.0,0.27897435]
[1725551873569,1.5542315,56130.0,56129.0,0.27897436]
[1725551876116,1.1979165,56130.0,56129.0,0.28097436]
[1725551876905,1.1979165,56130.0,56129.0,0.27910742]
[1725551877318,1.22030271,56130.0,56129.0,0.28110742]
[1725551877719,1.05894571,56130.0,56129.0,0.28110742]
[1725551877921,1.23710271,56130.0,56129.0,0.28110742]
[1725551878354,1.2147165,56130.0,56129.0,0.27910742]
[1725551878554,0.997787,56130.0,56129.0,0.27910743]
[1725551878889,0.541472,56130.0,56129.0,0.27910743]
[1725551879118,1.1147165,56130.0,56129.0,0.27910743]
[1725551879723,1.1155335,56130.0,56129.0,0.27910743]
[1725551880566,1.4718485,56130.0,56129.0,0.00190744]
[1725551880799,1.5948485,56130.0,56129.0,0.00190744]
[1725551881230,1.9511635,56130.0,56129.0,0.00190744]
[1725551884451,1.95063016,56130.0,56129.0,0.00190744]
[1725551884676,1.92763016,56130.0,56129.0,0.00190744]
[1725551885821,1.57131516,56130.0,56129.0,0.00190744]
[1725551888472,1.59431516,56130.0,56129.0,0.00190744]
[1725551888731,1.56193064,56130.0,56129.0,0.00190744]
[1725551889339,1.91824564,56130.0,56129.0,0.00190744]
[1725551891057,1.91824564,56130.0,56121.0,0.4]
[1725551891058,1.8205765,56122.0,56121.0,0.4]
[1725551891479,1.9435765,56122.0,56121.0,0.4]
[1725551891701,1.9435765,56122.0,56121.0,0.40037344]
[1725551891904,1.7653935,56122.0,56121.0,0.40037344]
[1725551892121,1.9435765,56122.0,56121.0,0.40037344]
[1725551892571,1.9465765,56122.0,56121.0,0.40037344]
[1725551892787,1.9435765,56122.0,56121.0,0.40037344]
[1725551893231,1.9435765,56122.0,56115.0,0.00164]
[1725551893232,1.603818,56116.0,56115.0,0.00164]
[1725551893691,1.703818,56116.0,56115.0,0.00164]
[1725551894376,0.356487,56103.0,56102.0,0.1879]
[1725551894643,1.247771,56100.0,56097.0,0.2606]
[1725551894820,1.247771,56100.0,56099.0,0.0211202]
[1725551894821,1.1081945,56100.0,56099.0,0.0211202]
[1725551895087,1.4647005,56100.0,56099.0,0.0211202]
[1725551895312,1.1081945,56100.0,56099.0,0.0111202]
[1725551895538,1.4647005,56100.0,56099.0,0.0111202]
[1725551896019,1.8222065,56100.0,56099.0,0.0111202]
[1725551896234,1.8242065,56100.0,56099.0,0.0111202]
[1725551896511,1.5677005,56100.0,56099.0,0.0111202]
[1725551896713,1.5687005,56100.0,56099.0,0.0111202]
[1725551898061,1.5657005,56100.0,56099.0,0.0111202]
[1725551898298,1.48752355,56100.0,56099.0,0.0111202]
[1725551898721,1.58752355,56100.0,56099.0,0.0111202]
[1725551899134,1.58652355,56100.0,56099.0,0.0111202]
[1725551899349,1.59352355,56100.0,56099.0,0.0111202]
[1725551899566,1.60152355,56100.0,56099.0,0.0111202]
[1725551900008,1.59352355,56100.0,56099.0,0.0111202]
[1725551900456,1.60152355,56100.0,56099.0,0.0111202]
[1725551901393,1.02808805,56100.0,56099.0,0.0131202]
[1725551901601,1.24501755,56100.0,56099.0,0.0111202]
[1725551903859,1.24501755,56100.0,56099.0,0.0127522]
[1725551904443,1.24471875,56100.0,56099.0,0.0127522]
[1725551905070,1.24471875,56100.0,56092.0,0.1833]
[1725551905238,1.24471875,56100.0,56066.0,0.486]
[1725551905239,0.891487,56086.0,56085.0,0.2013]
[1725551905438,0.7518215,56086.0,56085.0,0.2013]
[1725551905642,0.356593,56087.0,56085.0,0.2013]
[1725551905643,0.178295,56087.0,56085.0,0.4684]
[1725551905859,0.178297,56086.0,56085.0,0.4684]
[1725551906297,0.534892,56086.0,56085.0,0.4684]
[1725551906727,0.356567,56091.0,56085.0,0.4684]
[1725551906950,0.178288,56089.0,56087.0,0.2693]
[1725551907199,0.178288,56089.0,56088.0,0.002]
[1725551907489,0.1,56099.0,56092.0,0.002]
[1725551907490,0.356541,56095.0,56092.0,0.002]
[1725551907717,0.356525,56097.0,56096.0,0.01]
[1725551907949,0.178262,56097.0,56096.0,0.033]
[1725551908210,0.534787,56097.0,56096.0,0.3052]
[1725551908441,0.356512,56099.0,56098.0,0.002]
[1725551908665,0.23883521,56103.0,56098.0,0.2742]
[1725551908666,0.178253,56100.0,56098.0,0.2742]
[1725551908869,0.178256,56099.0,56098.0,0.2742]
[1725551909093,0.534768,56099.0,56098.0,0.2972]
[1725551909799,0.89128,56099.0,56098.0,0.2972]
[1725551910293,0.178256,56099.0,56098.0,0.2972]
[1725551910529,0.534768,56099.0,56098.0,0.2722]
[1725551910764,1.24957747,56099.0,56098.0,0.2722]
[1725551911210,0.358512,56099.0,56093.0,0.2784]
[1725551911436,1.1082895,56094.0,56093.0,0.2784]
[1725551911663,1.4648335,56094.0,56093.0,0.2784]
[1725551912365,1.4648335,56094.0,56093.0,0.2884]
[1725551912366,1.247904,56094.0,56093.0,0.2884]
[1725551913537,1.247904,56094.0,56093.0,0.2784]
[1725551913767,0.891422,56090.0,56089.0,0.2747]
[1725551914001,1.1083515,56090.0,56089.0,0.2747]
[1725551914239,1.4649205,56090.0,56089.0,0.2747]
[1725551914471,0.178291,56088.0,56087.0,0.1997]
[1725551914714,0.178294,56087.0,56086.0,0.2684]
[1725551914962,0.891517,56084.0,56083.0,0.184]
[1725551915195,1.248124,56084.0,56083.0,0.184]
[1725551915643,0.891517,56084.0,56083.0,0.184]
[1725551915856,0.53491,56084.0,56083.0,0.184]
[1725551916301,0.356597,56086.0,56083.0,0.184]
[1725551916302,0.178299,56086.0,56084.0,0.2634]
[1725551916552,0.1,56087.0,56086.0,0.2649]
[1725551916783,0.634882,56087.0,56086.0,0.2649]
[1725551917016,0.634882,56087.0,56086.0,0.2869]
[1725551917483,0.356582,56088.0,56086.0,0.2869]
[1725551917758,0.89147,56087.0,56086.0,0.2869]
[1725551918641,0.89147,56087.0,56086.0,0.2889]
[1725551918851,0.89147,56087.0,56086.0,0.2659]
[1725551918852,1.248058,56087.0,56086.0,0.2659]
[1725551919061,1.248058,56087.0,56086.0,0.2589]
[1725551919705,0.534882,56087.0,56086.0,0.2589]
[1725551919905,0.540882,56087.0,56086.0,0.2779]
[1725551920141,0.89747,56087.0,56086.0,0.2779]
[1725551920393,0.540882,56087.0,56086.0,0.2779]
[1725551920631,0.545882,56087.0,56086.0,0.2779]
[1725551920855,0.189294,56087.0,56086.0,0.2779]
[1725551921526,0.545882,56087.0,56086.0,0.2779]
[1725551921763,0.011,56087.0,56086.0,0.65031096]
[1725551922196,0.011,56087.0,56086.0,0.82860796]
[1725551922417,0.011,56087.0,56086.0,1.18520296]
[1725551922624,0.005,56087.0,56086.0,1.18520296]
[1725551922834,0.178272,56094.0,56089.0,0.01]
[1725551923036,0.178275,56093.0,56091.0,0.262]
[1725551923250,0.356542,56095.0,56091.0,0.262]
[1725551923251,0.178278,56092.0,56091.0,0.262]
[1725551923461,0.178272,56094.0,56092.0,0.1853]
[1725551923690,0.4761,56113.0,56103.0,0.002]
[1725551923908,0.3959865,56104.0,56103.0,0.2448]
[1725551924134,0.3959865,56104.0,56098.0,0.1836]
[1725551924135,0.356499,56101.0,56099.0,0.2448]
[1725551924342,0.891265,56100.0,56099.0,0.2448]
[1725551924591,1.247771,56100.0,56099.0,0.2448]
[1725551925905,1.247813,56098.0,56097.0,0.002]
[1725551926113,1.4647425,56098.0,56097.0,0.002]
[1725551927472,1.247837,56097.0,56096.0,0.01]
[1725551928543,1.247904,56094.0,56093.0,0.001634]
[1725551928756,1.22189168,56094.0,56093.0,0.001634]
[1725551928971,1.75670768,56094.0,56093.0,0.001634]
[1725551929595,1.94294511,56094.0,56093.0,0.001634]
[1725551930022,1.94294511,56094.0,56093.0,0.004634]
[1725551930023,2.04294511,56094.0,56093.0,0.004634]
[1725551930262,2.04294511,56094.0,56093.0,0.001634]
[1725551930472,2.04294511,56094.0,56093.0,0.004634]
[1725551930693,1.85684511,56094.0,56093.0,0.004634]
[1725551931126,1.87919599,56094.0,56093.0,0.004634]
[1725551932704,1.87919599,56094.0,56093.0,0.001634]
[1725551934306,1.88119599,56094.0,56093.0,0.001634]
[1725551935652,0.003,56094.0,56093.0,0.282934]
[1725551935877,0.003,56094.0,56093.0,0.82208498]
[1725551936125,0.003,56094.0,56093.0,1.53518498]
[1725551936335,0.003,56094.0,56093.0,1.88816996]
[1725551936541,0.003,56094.0,56093.0,0.64024496]
[1725551937208,0.000817,56101.0,56100.0,0.01]
[1725551937420,0.000817,56101.0,56100.0,0.4563]
[1725551938532,0.000817,56101.0,56100.0,0.4593]
[1725551938747,0.000817,56101.0,56100.0,0.638553]
[1725551938930,0.000817,56101.0,56100.0,1.52707596]
[1725551939925,0.000817,56101.0,56100.0,1.17056996]
[1725551940148,0.000817,56101.0,56100.0,0.81406396]
[1725551940564,0.000817,56101.0,56100.0,1.17056996]
[1725551940806,0.000817,56101.0,56100.0,0.4603]
[1725551941259,0.179066,56101.0,56100.0,0.4603]
[1725551941505,0.535565,56101.0,56100.0,0.4603]
[1725551941722,0.179066,56101.0,56100.0,0.4603]
[1725551941960,0.179066,56101.0,56100.0,0.4253]
[1725551941961,0.535565,56101.0,56100.0,0.4253]
[1725551942202,1.248563,56101.0,56100.0,0.002]
[1725551942845,0.535565,56101.0,56100.0,0.002]
[1725551943054,0.179066,56101.0,56100.0,0.002]
[1725551943305,0.535565,56101.0,56100.0,0.002]
[1725551943721,0.535565,56101.0,56100.0,0.001]
[1725551943933,0.892064,56101.0,56100.0,0.001]
[1725551944137,0.178253,56100.0,56099.0,0.023]
[1725551944348,0.000817,56101.0,56099.0,0.023]
[1725551944560,0.000817,56101.0,56100.0,0.43776468]
[1725551944785,0.000817,56101.0,56100.0,0.635453]
[1725551945002,0.000817,56101.0,56100.0,0.645453]
[1725551945209,0.000817,56101.0,56100.0,1.001959]
[1725551945412,0.000817,56101.0,56100.0,1.53397596]
[1725551945621,0.000817,56101.0,56100.0,1.17746996]
[1725551947439,0.179066,56101.0,56100.0,0.4672]
[1725551947649,0.535565,56101.0,56100.0,0.4672]
[1725551948399,0.000817,56101.0,56100.0,0.4672]
[1725551948864,0.000817,56101.0,56100.0,1.98360232]
[1725551949093,0.000817,56101.0,56100.0,1.80534932]
[1725551949302,0.000817,56101.0,56100.0,1.53397596]
[1725551949737,0.000817,56101.0,56100.0,0.64271096]
[1725551949969,0.000817,56101.0,56100.0,0.82096396]
[1725551950640,0.000817,56101.0,56100.0,0.4672]
[1725551950867,0.001817,56101.0,56100.0,0.4702]
[1725551951548,0.000817,56101.0,56100.0,0.4672]
[1725551951793,0.001817,56101.0,56100.0,0.4702]
[1725551952020,0.002817,56101.0,56100.0,0.4842]
[1725551952276,0.001817,56101.0,56100.0,0.4702]
[1725551952497,0.002817,56101.0,56100.0,0.4842]
[1725551952959,0.537565,56101.0,56100.0,0.4842]
[1725551953188,0.181066,56101.0,56100.0,0.4842]
[1725551953418,0.002817,56101.0,56100.0,0.4842]
[1725551953640,0.537565,56101.0,56100.0,0.4842]
[1725551953873,0.181066,56101.0,56100.0,0.4842]
[1725551954090,0.181066,56101.0,56100.0,0.042]
[1725551954091,1.250563,56101.0,56100.0,0.042]
[1725551954276,1.250563,56101.0,56100.0,0.029]
[1725551954786,1.25002987,56101.0,56100.0,0.029]
[1725551955022,1.24902987,56101.0,56100.0,0.014]
[1725551955219,0.178256,56099.0,56098.0,0.002]
[1725551955442,1.247792,56099.0,56098.0,0.002]
[1725551955665,1.247692,56099.0,56098.0,0.002]
[1725551955885,0.89118,56099.0,56098.0,0.002]
[1725551956797,0.29371872,56101.0,56094.0,0.001634]
[1725551957023,0.534807,56095.0,56094.0,0.001634]
[1725551957240,0.891345,56095.0,56094.0,0.001634]
[1725551957457,0.891345,56095.0,56094.0,0.011634]
[1725551957676,0.891345,56095.0,56094.0,0.001634]
[1725551957677,1.247883,56095.0,56094.0,0.001634]
[1725551959569,1.247883,56095.0,56094.0,0.016634]
[1725551959760,1.247883,56095.0,56094.0,0.019634]
[1725551961038,1.247883,56095.0,56094.0,0.021634]
[1725551961261,1.247883,56095.0,56094.0,0.009634]
[1725551961708,1.604421,56095.0,56094.0,0.009634]
[1725551961936,1.797921,56095.0,56094.0,0.009634]
[1725551962173,1.897921,56095.0,56094.0,0.009634]
[1725551962417,1.347883,56095.0,56094.0,0.009634]
[1725551962859,1.347883,56095.0,56094.0,0.006634]
[1725551963074,1.347883,56095.0,56094.0,0.003634]
[1725551963505,1.37023088,56095.0,56094.0,0.006634]
[1725551963784,1.37023088,56095.0,56094.0,0.001634]
[1725551964010,1.72676888,56095.0,56094.0,0.004634]
[1725551964234,1.37023088,56095.0,56094.0,0.004634]
[1725551964974,1.37023088,56095.0,56094.0,0.006634]
[1725551965464,1.37023088,56095.0,56094.0,0.029634]
[1725551965465,0.356538,56095.0,56094.0,0.029634]
[1725551965671,0.178269,56095.0,56094.0,0.039634]
[1725551965913,0.534807,56095.0,56094.0,0.039634]
[1725551966130,0.178269,56095.0,56094.0,0.284634]
[1725551966367,0.534807,56095.0,56094.0,0.284634]
[1725551966583,0.35678587,56101.0,56097.0,0.002]
[1725551966584,0.534779,56098.0,56097.0,0.002]
[1725551966805,0.00028387,56101.0,56097.0,0.002]
[1725551966806,0.00028387,56101.0,56100.0,0.432453]
[1725551967040,0.00028387,56101.0,56100.0,0.2542]
[1725551967256,0.00028387,56101.0,56100.0,0.2772]
[1725551967487,0.00028387,56101.0,56100.0,0.45901757]
[1725551967919,0.00028387,56101.0,56100.0,0.81552357]
[1725551968136,0.00128387,56101.0,56100.0,0.82552357]
[1725551968360,0.00128387,56101.0,56100.0,0.46901757]
[1725551968572,0.00128387,56101.0,56100.0,0.819959]
[1725551969054,0.00128387,56101.0,56100.0,0.463453]
[1725551969483,0.00228387,56101.0,56100.0,0.468453]
[1725551970148,0.178241,56104.0,56100.0,0.468453]
[1725551970363,0.23975218,56112.0,56100.0,0.2902]
[1725551970364,0.178249,56101.0,56100.0,0.2902]
[1725551970557,0.534748,56101.0,56100.0,0.2902]
[1725551971528,0.891247,56101.0,56100.0,0.2852]
[1725551971752,0.891247,56101.0,56100.0,0.2902]
[1725551972205,0.891247,56101.0,56100.0,0.2852]
[1725551972432,0.891247,56101.0,56100.0,0.2752]
[1725551972633,0.891247,56101.0,56100.0,0.01]
[1725551972891,0.892247,56101.0,56100.0,0.017]
[1725551973330,1.248746,56101.0,56100.0,0.017]
[1725551973767,0.892247,56101.0,56100.0,0.017]
[1725551974218,1.248746,56101.0,56100.0,0.017]
[1725551977848,1.248746,56101.0,56100.0,0.017]
[1725551979237,1.248746,56101.0,56100.0,0.018634]
[1725551980754,1.24848128,56101.0,56100.0,0.018634]
[1725551981217,1.60498028,56101.0,56100.0,0.018634]
[1725551981437,1.70498028,56101.0,56100.0,0.018634]
[1725551981912,1.34848128,56101.0,56100.0,0.018634]
[1725551982372,1.34748128,56101.0,56100.0,0.011634]
[1725551982601,1.34848128,56101.0,56100.0,0.011634]
[1725551983019,1.34848128,56101.0,56100.0,0.001634]
[1725551984323,1.34948128,56101.0,56100.0,0.001634]
[1725551984759,1.34948128,56101.0,56100.0,0.233134]
[1725551987465,1.56668721,56101.0,56100.0,0.233134]
[1725551992422,0.002,56101.0,56100.0,0.243134]
[1725551992660,0.002817,56101.0,56100.0,0.643687]
[1725551993150,0.181066,56101.0,56100.0,0.442434]
[1725551993377,0.537565,56101.0,56100.0,0.243134]
[1725551993586,0.894064,56101.0,56100.0,0.243134]
[1725551994025,0.893064,56101.0,56100.0,0.243134]
[1725551994250,0.62507025,56101.0,56100.0,0.001634]
[1725551994473,1.16081825,56101.0,56100.0,0.008634]
[1725551994714,1.16081825,56101.0,56100.0,0.001634]
[1725551994715,1.15981825,56101.0,56100.0,0.001634]
[1725551994924,1.16181825,56101.0,56100.0,0.014634]
[1725551995360,1.16181825,56101.0,56100.0,0.007634]
[1725551995361,1.16081825,56101.0,56100.0,0.007634]
[1725551995574,0.80431925,56101.0,56100.0,0.007634]
[1725551996220,0.80331925,56101.0,56100.0,0.001634]
[1725551996671,0.80331925,56101.0,56100.0,0.002634]
[1725551997334,0.44682025,56101.0,56100.0,0.002634]
[1725551997547,0.178249,56101.0,56100.0,0.242634]
[1725551997772,0.178249,56101.0,56100.0,0.264634]
[1725551997996,0.356489,56103.0,56100.0,0.264634]
[1725551997997,0.356489,56103.0,56100.0,0.261634]
[1725551998224,0.535748,56101.0,56100.0,0.238634]
[1725551998453,0.893247,56101.0,56100.0,0.238634]
[1725551998726,1.11045293,56101.0,56100.0,0.238634]
[1725551998933,1.46595193,56101.0,56100.0,0.001634]
[1725551999156,1.46495193,56101.0,56100.0,0.001634]
[1725551999397,1.82145093,56101.0,56100.0,0.001634]
[1725551999622,1.92145093,56101.0,56100.0,0.001634]
[1725552001093,0.991247,56101.0,56100.0,0.001634]
[1725552001339,0.992247,56101.0,56100.0,0.001634]
[1725552001791,1.348746,56101.0,56100.0,0.001634]
[1725552002006,1.349746,56101.0,56100.0,0.001634]
[1725552002463,1.349746,56101.0,56100.0,0.251934]
[1725552003566,1.34822942,56101.0,56100.0,0.001634]
[1725552004705,1.81162442,56101.0,56100.0,0.001634]
[1725552004950,1.93146327,56101.0,56100.0,0.001634]
[1725552005397,1.93228027,56101.0,56100.0,0.001634]
[1725552006040,2.28877927,56101.0,56100.0,0.001634]
[1725552006476,2.50327927,56101.0,56100.0,0.001634]
[1725552006694,2.50527927,56101.0,56100.0,0.001634]
[1725552006936,2.72347927,56101.0,56100.0,0.001634]
[1725552007149,3.07997827,56101.0,56100.0,0.001634]
[1725552007369,2.48697927,56101.0,56100.0,0.001634]
[1725552007819,2.48897927,56101.0,56100.0,0.001634]
[1725552008049,2.48887728,56101.0,56100.0,0.001634]
[1725552008503,2.86537628,56101.0,56100.0,0.001634]
[1725552009159,2.86337628,56101.0,56100.0,0.001634]
[1725552009627,2.86537628,56101.0,56100.0,0.001634]
[1725552010068,3.22187528,56101.0,56100.0,0.001634]
[1725552010315,2.38076493,56095.0,56094.0,0.001634]
[1725552010535,0.534882,56087.0,56086.0,0.001634]
[1725552010773,1.248058,56087.0,56086.0,0.001634]
[1725552011013,0.99147,56087.0,56086.0,0.001634]
[1725552011254,0.89147,56087.0,56086.0,0.001634]
[1725552012200,1.248058,56087.0,56086.0,0.090254]
[1725552012422,1.248058,56087.0,56086.0,0.113254]
[1725552012645,1.249058,56087.0,56086.0,0.113254]
[1725552013347,0.89247,56087.0,56086.0,0.113254]
[1725552013566,1.249058,56087.0,56086.0,0.113254]
[1725552014297,1.250058,56087.0,56086.0,0.119254]
[1725552014826,0.89347,56087.0,56086.0,0.119254]
[1725552015009,0.180294,56087.0,56086.0,0.72096496]
[1725552015227,0.536882,56087.0,56086.0,0.72096496]
[1725552015458,0.179294,56087.0,56086.0,0.72096496]
[1725552015688,0.001,56087.0,56086.0,0.72096496]
[1725552015920,0.001,56087.0,56086.0,0.89926196]
[1725552016470,0.002,56087.0,56086.0,1.26585696]
[1725552016720,0.000817,56104.0,56086.0,1.26585696]
[1725552016721,0.000817,56104.0,56100.0,0.544759]
[1725552016979,0.000817,56104.0,56100.0,1.50547596]
[1725552017511,0.000817,56104.0,56100.0,1.86198196]
[1725552017741,0.38405085,56101.0,56100.0,1.87198196]
[1725552017961,0.38405085,56101.0,56100.0,1.89498196]
[1725552018417,0.38505085,56101.0,56100.0,1.90198196]
[1725552018637,0.000817,56104.0,56103.0,0.002]
[1725552018853,0.000817,56104.0,56103.0,2.10572089]
[1725552019078,0.000817,56104.0,56103.0,2.11572089]
[1725552020242,0.001817,56104.0,56103.0,2.51220789]
[1725552020475,0.35633,56128.0,56125.0,0.245]
[1725552020706,1.06101615,56126.0,56125.0,0.245]
[1725552020950,0.890852,56126.0,56125.0,0.268]
[1725552021197,1.247193,56126.0,56125.0,0.268]
[1725552021418,0.890852,56126.0,56125.0,0.023]
[1725552022133,0.17817,56126.0,56125.0,0.023]
[1725552022361,0.356327,56129.0,56125.0,0.023]
[1725552022625,0.000817,56130.0,56129.0,0.640861]
[1725552022844,0.000817,56130.0,56129.0,1.52901596]
[1725552023084,0.000817,56130.0,56129.0,1.55201596]
[1725552023299,0.000817,56130.0,56129.0,0.4857]
[1725552023527,0.000817,56130.0,56129.0,0.663861]
[1725552024224,0.000817,56130.0,56129.0,0.4857]
[1725552024467,0.535289,56130.0,56129.0,0.289]
[1725552024905,0.000817,56130.0,56129.0,0.289]
[1725552025183,0.000817,56130.0,56129.0,0.823483]
[1725552025442,0.001817,56130.0,56129.0,1.01499396]
[1725552025687,0.001817,56130.0,56129.0,1.92593796]
[1725552025921,0.001817,56130.0,56129.0,1.93993796]
[1725552026149,0.001817,56130.0,56129.0,1.92593796]
[1725552027527,0.001817,56130.0,56129.0,1.57161596]
[1725552027780,0.001817,56130.0,56129.0,1.21529396]
[1725552028016,0.000817,56130.0,56129.0,1.20129396]
[1725552028233,0.000817,56130.0,56129.0,1.21529396]
[1725552028455,0.000817,56130.0,56129.0,1.57161596]
[1725552028690,0.000817,56130.0,56129.0,1.55961596]
[1725552028905,0.000817,56130.0,56129.0,2.26825996]
[1725552029144,0.000817,56130.0,56129.0,2.41625996]
[1725552029573,0.000817,56130.0,56129.0,2.40225996]
[1725552029845,0.000817,56130.0,56129.0,2.41625996]
[1725552030066,0.000817,56130.0,56129.0,2.05993796]
[1725552030348,0.000817,56130.0,56129.0,1.19229396]
[1725552030566,0.000817,56130.0,56129.0,1.54861596]
[1725552031227,0.000817,56130.0,56129.0,0.4823]
[1725552031447,0.000817,56130.0,56129.0,1.01413296]
[1725552031669,0.000817,56130.0,56129.0,1.90693796]
[1725552031906,0.000817,56130.0,56129.0,1.90493796]
[1725552032356,0.000817,56130.0,56129.0,1.90693796]
[1725552032608,0.000817,56130.0,56129.0,2.41625996]
[1725552033512,0.000817,56130.0,56129.0,2.02793796]
[1725552033729,0.356219,56146.0,56145.0,0.01]
[1725552033730,0.57342493,56146.0,56145.0,0.01]
[1725552033964,0.57342493,56146.0,56145.0,0.033]
[1725552033965,1.10775093,56146.0,56145.0,0.033]
[1725552034188,1.65116993,56146.0,56145.0,0.033]
[1725552034405,1.65116993,56146.0,56145.0,0.023]
[1725552034628,0.534378,56140.0,56139.0,0.01]
[1725552034865,0.89063,56140.0,56139.0,0.01]
[1725552035093,0.534378,56140.0,56139.0,0.01]
[1725552035308,0.534378,56140.0,56139.0,0.2608]
[1725552035828,0.178123,56141.0,56139.0,0.2608]